[Event "1st Bangalore GM-Open-A 2024"]
[Site "Bangalore"]
[Date "2024.01.21"]
[Round "6.7"]
[White "Audi Ameya"]
[Black "Fedorov, Alexei"]
[Result "1/2-1/2"]
[ECO "B30"]
[WhiteElo "2385"]
[BlackElo "2457"]
[Annotator "RC"]
[PlyCount "171"]
[EventDate "2024.01.20"]
[EventType "swiss"]
[EventCountry "IND"]
[SourceTitle "playchess.com"]
[Source "ChessBase"]
[SourceQuality "1"]
[TimeControl "5400+30"]

1. e4 {[%emt 0:00:02]} c5 {[%emt 0:00:04]} 2. Nf3 {[%emt 0:00:03]} Nc6 {[%emt 0:00:10]} 3. Bb5 {[%emt 0:00:06]} e6 {[%emt 0:00:06]} 4. O-O {[%emt 0:00:28]} Nge7 {[%emt 0:00:08]} 5. Re1 {[%emt 0:00:06]} a6 {[%emt 0:01:45]} 6. Bf1 {[%emt 0:00:26]} b6 {[%emt 0:01:04]} 7. c3 {[%emt 0:02:28]} d5 {[%emt 0:00:50]} 8. d3 {[%emt 0:07:46]} dxe4 {[%emt 0:09:20]} 9. dxe4 {[%emt 0:00:05]} Qxd1 {[%emt 0:00:03]} 10. Rxd1 {[%emt 0:00:04]} Ng6 {[%emt 0:02:04]} 11. Nbd2 {[%emt 0:14:02]} Bb7 {[%emt 0:07:45]} 12. Nc4 {[%emt 0:00:04]} b5 {[%emt 0:00:04]} 13. Nd6+ {[%emt 0:00:03]} Bxd6 {[%emt 0:00:05]} 14. Rxd6 {[%emt 0:00:02]} Ke7 {[%emt 0:00:27]} 15. Rd1 {[%emt 0:00:22]} Nce5 {[%emt 0:06:59]} 16. Nxe5 {[%emt 0:01:54]} Nxe5 {[%emt 0:00:06]} 17. Be3 {[%emt 0:00:25]} Rhc8 {[%emt 0:04:21]} 18. f3 {[%emt 0:02:39]} c4 {[%emt 0:02:38]} 19. Bb6 {[%emt 0:08:18]} a5 {[%emt 0:09:48]} 20. Rd2 {[%emt 0:01:23]} Nd7 {[%emt 0:01:26]} 21. Be3 {[%emt 0:02:35]} a4 {[%emt 0:02:25]} 22. Rad1 {[%emt 0:00:45]} Rc7 {[%emt 0:01:15]} 23. a3 {[%emt 0:02:12]} f6 {[%emt 0:04:23]} 24. h4 {[%emt 0:02:17]} h5 {[%emt 0:01:36]} 25. Kf2 {[%emt 0:03:34]} Ne5 {[%emt 0:04:02]} 26. g3 {[%emt 0:12:47]} Rac8 {[%emt 0:04:54]} 27. Bf4 {[%emt 0:01:54]} Bc6 {[%emt 0:11:32]} 28. Ke3 {[%emt 0:02:23]} Rd7 {[%emt 0:01:51]} 29. Bxe5 {[%emt 0:00:07]} fxe5 {[%emt 0:00:21]} 30. Rxd7+ {[%emt 0:00:35]} Bxd7 {[%emt 0:00:04]} 31. f4 {[%emt 0:02:03]} Rc5 {[%emt 0:01:34]} 32. Be2 {[%emt 0:12:04]} g6 {[%emt 0:00:28]} 33. fxe5 {[%emt 0:01:39]} Rxe5 {[%emt 0:00:17]} 34. Kf4 {[%emt 0:00:19]} Rc5 {[%emt 0:00:03]} 35. e5 {[%emt 0:00:05]} Rc8 {[%emt 0:02:23]} 36. Rf1 {[%emt 0:03:02]} Bc6 {[%emt 0:03:14]} 37. Ke3 {[%emt 0:00:45]} Be8 {[%emt 0:03:36]} 38. Bf3 {[%emt 0:00:40]} Bc6 {[%emt 0:01:14]} 39. Bxc6 {[%emt 0:07:05]} Rxc6 {[%emt 0:00:04]} 40. Rf6 {[%emt 0:00:02]} Rc5 {[%emt 0:00:11]} 41. Kf4 {[%emt 0:01:57]} Rd5 {[%emt 0:00:21]} 42. Rxg6 {[%emt 0:00:03]} Rd2 {[%emt 0:02:08]} 43. Rh6 {[%emt 0:02:51]} Rxb2 {[%emt 0:02:02]} 44. Rxh5 {[%emt 0:00:02]} Rb3 {[%emt 0:00:57]} 45. Rh7+ {[%emt 0:00:04]} Kf8 {[%emt 0:00:28]} 46. h5 {[%emt 0:00:43]} Rxc3 {[%emt 0:03:25]} 47. h6 {[%emt 0:00:02]} Rxa3 {[%emt 0:01:30]} 48. Rc7 {[%emt 0:00:54]} Kg8 {[%emt 0:00:37]} 49. g4 {[%emt 0:00:04]} Rh3 {[%emt 0:00:54]} 50. Kg5 {[%emt 0:01:04]} a3 {[%emt 0:00:30]} 51. Kg6 {[%emt 0:00:33]} Kf8 {[%emt 0:01:10]} 52. h7 {[%emt 0:00:34]} b4 {[%emt 0:00:36]} 53. g5 {[%emt 0:03:06]} Ke8 {[%emt 0:06:46]} 54. Kf6 {[%emt 0:01:56]} a2 {[%emt 0:00:24]} 55. Kxe6 {[%emt 0:00:27]} Kd8 {[%emt 0:00:32]} 56. Ra7 {[%emt 0:00:18]} Rxh7 57. Rxa2 {[%emt 0:00:47]} b3 {[%emt 0:00:34]} 58. Ra8+ {[%emt 0:04:03]} Kc7 {[%emt 0:00:04]} 59. Ra7+ {[%emt 0:00:01]} Kc6 {[%emt 0:00:50]} 60. Rxh7 {[%emt 0:00:04]} b2 {[%emt 0:00:03]} 61. Rh1 {[%emt 0:01:43]} c3 {[%emt 0:00:05]} 62. Rb1 {[%emt 0:01:35]} c2 {[%emt 0:00:08]} 63. Rxb2 {[%emt 0:00:02]} c1=Q {[%emt 0:00:06]} 64. Rg2 {[%emt 0:00:26]} Qc4+ {[%emt 0:00:21]} 65. Ke7 {[%emt 0:00:10]} Qe4 {[%emt 0:01:04]} 66. Rg1 {[%emt 0:00:21]} Qxe5+ {[%emt 0:00:38]} 67. Kf7 {[%emt 0:00:03]} Qd5+ {[%emt 0:01:09]} 68. Kg6 {[%emt 0:00:06]} Qe6+ {[%emt 0:00:16]} 69. Kg7 {[%emt 0:00:45]} Qe3 {[%emt 0:00:48]} 70. Rg4 {[%emt 0:00:08]} Kd6 {[%emt 0:00:25]} 71. g6 {[%emt 0:00:20]} Ke7 {[%emt 0:00:49]} 72. Ra4 {[%emt 0:01:00]} Qc3+ {[%emt 0:00:36]} 73. Kh7 {[%emt 0:00:00]} Qh3+ {[%emt 0:00:12]} 74. Kg7 {[%emt 0:00:00]} Qd3 {[%emt 0:00:43]} 75. Ra7+ {[%emt 0:00:03]} Ke6 {[%emt 0:00:05]} 76. Rf7 {[%emt 0:00:02]} Qd4+ {[%emt 0:00:13]} 77. Kg8 {[%emt 0:00:48]} Qd8+ {[%emt 0:01:13]} 78. Rf8 {[%emt 0:00:27]} Qd5 {[%emt 0:00:39]} 79. g7 {[%emt 0:00:20]} Ke7+ {[%emt 0:00:09]} 80. Kh7 {[%emt 0:00:06]} Qh5+ {[%emt 0:00:13]} 81. Kg8 {[%emt 0:00:02]} Qg6 {[%emt 0:00:22]} 82. Kh8 {[%emt 0:00:16]} Qh6+ {[%emt 0:00:04]} 83. Kg8 {[%emt 0:00:02]} Qh5 {[%emt 0:00:06]} 84. Rf1 {[%emt 0:00:50]} Qd5+ {[%emt 0:01:08]} 85. Kh8 {[%emt 0:00:06]} Qh5+ {[%emt 0:00:04]} 86. Kg8 {[%emt 0:00:58]} 1/2-1/2

[Event "1st Bangalore GM-Open-A 2024"]
[Site "Bangalore"]
[Date "2024.01.21"]
[Round "6.8"]
[White "Dere Pushkar"]
[Black "Ilamparthi A R"]
[Result "0-1"]
[ECO "C41"]
[WhiteElo "2191"]
[BlackElo "2426"]
[Annotator "ChessBase"]
[PlyCount "84"]
[EventDate "2024.01.20"]
[EventType "swiss"]
[EventCountry "IND"]
[SourceTitle "playchess.com"]
[Source "ChessBase"]
[SourceQuality "1"]
[TimeControl "5400+30"]

1. e4 {[%emt 0:00:04]} d6 {[%emt 0:00:06]} 2. d4 {[%emt 0:00:09]} Nf6 {[%emt 0:00:06]} 3. Nc3 {[%emt 0:00:09]} e5 {[%emt 0:00:04]} 4. Nf3 {[%emt 0:01:56]} Nbd7 {[%emt 0:00:09]} 5. Bc4 {[%emt 0:02:01]} Be7 {[%emt 0:00:02]} 6. a4 {[%emt 0:00:44]} O-O {[%emt 0:00:09]} 7. O-O {[%emt 0:03:34]} c6 {[%emt 0:00:03]} 8. a5 {[%emt 0:02:58]} h6 {[%emt 0:03:31]} 9. h3 {[%emt 0:09:10]} Re8 {[%emt 0:01:36]} 10. Be3 {[%emt 0:02:18]} Bf8 {[%emt 0:03:07]} 11. d5 {[%emt 0:01:19]} cxd5 {[%emt 0:05:03]} 12. Bxd5 {[%emt 0:00:23]} Nxd5 {[%emt 0:02:33]} 13. Nxd5 {[%emt 0:03:39]} Nf6 {[%emt 0:00:10]} 14. Nxf6+ {[%emt 0:03:10]} Qxf6 {[%emt 0:00:12]} 15. Kh2 {[%emt 0:06:53]} Qg6 {[%emt 0:13:08]} 16. Nd2 {[%emt 0:03:47]} f5 {[%emt 0:02:22]} 17. f3 {[%emt 0:02:03]} Be6 {[%emt 0:06:56]} 18. c4 {[%emt 0:00:33]} Qf7 {[%emt 0:11:26]} 19. b3 {[%emt 0:01:40]} f4 {[%emt 0:01:49]} 20. Bf2 {[%emt 0:05:14]} g5 {[%emt 0:00:50]} 21. Nb1 {[%emt 0:02:18]} Qg6 {[%emt 0:03:45]} 22. Nc3 {[%emt 0:00:29]} Re7 {[%emt 0:00:59]} 23. a6 {[%emt 0:07:01]} b6 {[%emt 0:31:38]} 24. Nd5 {[%emt 0:22:54]} Rf7 {[%emt 0:00:00]} 25. Bxb6 {[%emt 0:00:49]} axb6 {[%emt 0:00:00]} 26. Nxb6 {[%emt 0:00:34]} Raa7 {[%emt 0:00:00]} 27. b4 {[%emt 0:00:11]} h5 {[%emt 0:00:00]} 28. b5 {[%emt 0:01:31]} g4 {[%emt 0:00:00]} 29. Rg1 {[%emt 0:00:18]} Rg7 {[%emt 0:00:00]} 30. Ra2 {[%emt 0:02:54]} Qg5 {[%emt 0:00:00]} 31. Nd5 {[%emt 0:01:18]} Qh4 {[%emt 0:01:47]} 32. Qf1 {[%emt 0:00:12]} Rg6 {[%emt 0:02:25]} 33. g3 {[%emt 0:03:27]} fxg3+ {[%emt 0:00:49]} 34. Rxg3 {[%emt 0:00:04]} Bxd5 {[%emt 0:02:03]} 35. cxd5 {[%emt 0:02:12]} Bh6 {[%emt 0:03:08]} 36. b6 {[%emt 0:00:04]} Rag7 {[%emt 0:00:47]} 37. a7 {[%emt 0:02:09]} Bf4 {[%emt 0:00:21]} 38. a8=Q+ {[%emt 0:00:04]} Kh7 {[%emt 0:00:03]} 39. b7 {[%emt 0:05:57]} Qxg3+ {[%emt 0:02:37]} 40. Kh1 {[%emt 0:00:03]} gxh3 {[%emt 0:00:26]} 41. Qa7 {[%emt 0:00:07]} h2 {[%emt 0:00:21]} 42. Ra1 {[%emt 0:01:47]} Qh4 {[%emt 0:00:05]} 0-1

[Event "1st Bangalore GM-Open-A 2024"]
[Site "Bangalore"]
[Date "2024.01.21"]
[Round "6.9"]
[White "Sankalp Gupta"]
[Black "Nithin Babu"]
[Result "1/2-1/2"]
[ECO "E71"]
[WhiteElo "2535"]
[BlackElo "2177"]
[Annotator "TA"]
[PlyCount "240"]
[EventDate "2024.01.20"]
[EventType "swiss"]
[EventCountry "IND"]
[SourceTitle "playchess.com"]
[Source "ChessBase"]
[SourceQuality "1"]
[TimeControl "5400+30"]

{[%evp 20,240,46,39,32,45,65,52,25,20,21,24,31,27,26,18,29,0,0,-56,-50,-188,-61,-122,-109,-121,-85,-73,-72,-108,-47,-94,-77,-177,-94,-207,-203,-292,-304,-274,-218,-214,-221,-216,-136,-140,-146,-122,-129,-153,-80,-125,-23,-23,-28,-486,-39,-45,-12,-22,-22,-22,-26,-112,-93,-81,-8,-8,-14,-8,-8,-18,-18,-266,-27,-63,-35,-24,-23,-95,-87,-80,-89,-108,-106,-122,-135,-121,-126,-136,-123,-137,-83,-100,-68,-68,-68,-68,-68,-68,-8,-8,-8,-8,-8,-8,0,0,0,0,0,0,0,0,0,0,0,0,0,0,0,0,0,0,0,0,0,0,0,0,0,0,0,0,0,0,0,0,0,0,0,0,0,0,0,0,0,0,0,0,0,0,0,0,0,0,0,0,0,0,0,0,0,0,0,0,0,0,0,0,0,0,0,0,0,0,0,0,0,0,0,0,0,0,0,0,0,0,0,0,0,0,0,0,0,0,0,0,0,0,0,0,0,0,0,0,0,0,0,0,0,0,0,0,0,0,0,0,0,0,0,0,0]} 1. d4 {[%emt 0:00:03]} Nf6 {[%emt 0:06:33]} 2. c4 {[%emt 0:00:09]} g6 {[%emt 0:00:09]} 3. Nc3 {[%emt 0:00:03]} Bg7 {[%emt 0:00:06]} 4. e4 {[%emt 0:00:04]} d6 {[%emt 0:00:04]} 5. h3 {[%emt 0:00:04]} O-O {[%emt 0:00:05]} 6. Be3 {[%emt 0:00:05]} e5 {[%emt 0:00:24]} 7. d5 {[%emt 0:00:03]} Na6 {[%emt 0:00:34]} 8. g4 {[%emt 0:01:36]} Nc5 {[%emt 0:00:08]} 9. f3 {[%emt 0:00:28]} a5 {[%emt 0:01:27]} 10. Qd2 {[%emt 0:01:55]} c6 {[%emt 0:02:00]} 11. Nge2 {[%emt 0:00:18]} a4 {[%emt 0:02:19]} 12. Ng3 {[%emt 0:00:34]} h5 {[%emt 0:03:08]} 13. Bg5 {[%emt 0:15:17]} h4 {[%emt 0:04:26]} 14. Bxh4 {[%emt 0:17:51]} (14. Nge2 {simplifies} b5 15. cxb5 cxd5 16. Nxd5 Ne6 17. Bxh4 Nxe4 18. Bxd8 Nxd2 19. Be7) 14... Nfxe4 {[%emt 0:08:20]} 15. Bxd8 {[%emt 0:00:08]} Nxd2 {[%emt 0:00:07]} 16. Be7 $1 {[%emt 0:01:05]} Nxf3+ {[%emt 0:23:28]} 17. Kf2 {[%emt 0:03:14]} a3 {[%emt 0:10:05]} 18. Bxd6 {[%emt 0:17:05]} (18. Kxf3 axb2 19. Rb1 Ra3 $15) (18. b4 $5 e4 19. Bxf8 Kxf8 20. bxc5 Bxc3 21. Rd1 cxd5 22. cxd6 $14 (22. cxd5 f5 $14)) 18... axb2 {[%emt 0:03:34]} 19. Rd1 {[%emt 0:06:52]} (19. Rb1 $11 Nd2 20. Rxb2 Nxf1 21. Kxf1 (21. Bxc5 Nxg3 22. Kxg3 e4 $15)) 19... b6 $1 $15 {[%emt 0:05:55]} (19... Ra3 20. Bxf8 (20. Bxc5 Rxc3 21. Ne4 Rc1 $11) (20. Nb1 Ng5 $11) 20... Kxf8 21. Nb1 Rxa2 22. Kxf3 $16) 20. Bg2 {[%emt 0:14:30]} (20. Kxf3 Ra3 21. Nge4 cxd5 22. cxd5 f5 $17) ({Better is} 20. dxc6 $15 Re8 21. Kxf3 (21. Bxc5 bxc5 22. Kxf3 Ra3 $15)) 20... Nd4 {[%emt 0:06:59]} (20... cxd5 $1 $19 {[%cal Oe5e4] And now ...e4! would win.} 21. Bxf8 (21. Kxf3 $2 e4+ {[%mdl 64] Discovered Attack} 22. Ngxe4 dxe4+ 23. Nxe4 Bb7 $19) 21... Kxf8 22. Bxf3 e4 {[%mdl 64] Discovered Attack} 23. Ngxe4 dxe4 24. Bxe4 Rb8 25. Rd8+ Ke7 26. Rxc8 Nxe4+ 27. Nxe4 Rxc8) 21. Bxf8 {[%emt 0:00:59]} (21. dxc6 $15 Ra3 22. Bxf8 Kxf8 23. Nge2) 21... Kxf8 $17 {[%emt 0:00:39]} (21... Bxf8 22. dxc6 Be7 23. Nge2) 22. dxc6 {[%emt 0:00:26]} Ra3 {[%emt 0:02:53]} 23. Nb1 {[%emt 0:00:54]} Rxa2 {[%emt 0:00:53]} 24. Ne2 {[%emt 0:00:07]} Be6 {[%emt 0:02:50]} (24... f5 $17 25. Rhf1 Ke8 26. gxf5 Bxf5) 25. Nec3 {[%emt 0:00:31]} (25. Bd5 $15) 25... Ra8 $17 {[%emt 0:02:46]} 26. Nd5 {[%emt 0:03:38]} (26. Bd5 $17) 26... Rb8 {[%emt 0:00:49]} (26... Nxc6 27. Nxb6 Rb8 28. Bxc6 $17) (26... Rc8 $19 27. Nxb6 Rb8 28. Nd7+ Nxd7 29. cxd7 Bxd7) 27. Rhe1 {[%emt 0:02:56]} (27. c7 $17 {was called for.} Rc8 28. Nbc3) 27... Nxc6 $19 {[%emt 0:01:59]} 28. Re2 {[%emt 0:03:24]} (28. Nc7 $142 Nd4 29. Nxe6+ Ndxe6 30. Bd5) 28... e4 $19 {[%emt 0:01:40]} 29. Bxe4 {[%emt 0:00:37]} Ne5 {[%emt 0:02:03]} 30. Bc2 {[%emt 0:01:31]} Nxc4 {[%emt 0:01:25]} 31. Nc7 {[%emt 0:00:34]} Ne5 {[%emt 0:01:09]} 32. Nxe6+ {[%emt 0:03:58]} Nxe6 {[%emt 0:00:01]} 33. Bb3 {[%emt 0:00:31]} Nc5 {[%emt 0:02:47]} 34. Bc2 {[%emt 0:00:14]} Nc6 {[%emt 0:01:09]} (34... Rc8 $142 35. Kg3 Nc6) 35. Red2 {[%emt 0:00:20]} Nb4 {[%emt 0:01:30]} (35... Bf6 $17 {Threatens to win with ...Nb4.} 36. Rd6 Bh4+ 37. Kg2 Nb4) 36. Rd8+ $1 $11 {[%emt 0:02:04]} Rxd8 {[%emt 0:00:02]} 37. Rxd8+ {[%emt 0:00:01]} Ke7 {[%emt 0:00:01]} 38. Rd2 {[%emt 0:00:02]} b5 {[%emt 0:01:15]} 39. Ke1 {[%emt 0:00:37]} Nc6 {[%emt 0:01:37]} 40. Kd1 {[%emt 0:03:15]} b4 {[%emt 0:00:25]} 41. Bd3 {[%emt 0:00:47]} (41. h4 $11) 41... Bc3 $17 {[%emt 0:00:59]} 42. Re2+ {[%emt 0:00:22]} Kf6 {[%emt 0:00:48]} (42... Kd6 $17 43. Bc2 Bg7) 43. Bc4 $11 {[%emt 0:00:32]} Ne5 {[%emt 0:00:24]} 44. Bd5 {[%emt 0:01:17]} Ncd3 {[%emt 0:00:47]} 45. Be4 {[%emt 0:01:14]} Nf4 {[%emt 0:00:53]} 46. Rh2 $2 {[%emt 0:00:40] [#]} (46. Rf2 $1 $11 Kg5 47. Nxc3 bxc3 48. Kc2) 46... Kg5 $2 {[%emt 0:00:49]} (46... Nc4 $1 $19 {[%cal Rc4e3]} 47. Kc2 Ke5) 47. Kc2 $11 {[%emt 0:00:11]} Bd4 {[%emt 0:00:32]} 48. Kb3 {[%emt 0:00:51]} Kh4 {[%emt 0:00:42]} 49. Rh1 {[%emt 0:00:31]} (49. Rd2 $11 {remains equal.} Be3 50. Rxb2) 49... Kg3 {[%emt 0:00:31]} (49... Nxh3 50. Bg2 $16 (50. Kxb4 Nxg4 51. Nd2 Ngf2 $17)) 50. Rd1 {[%emt 0:00:28]} Be3 {[%emt 0:00:45]} 51. Kxb2 {[%emt 0:00:31]} Nxh3 {[%emt 0:00:12]} 52. Kb3 {[%emt 0:00:30]} Nf2 {[%emt 0:00:28]} ({Worse is} 52... Nxg4 53. Rd6 $15) 53. Rg1+ {[%emt 0:00:29]} Kf4 {[%emt 0:00:11]} 54. Bd5 {[%emt 0:00:14] [#]} f6 $1 {[%emt 0:00:20]} ({And not} 54... Nfxg4 55. Rf1+ Kg3 56. Kxb4 $15) 55. Rg2 {[%emt 0:00:36]} Nfd3 {[%emt 0:00:51]} ({Weaker is} 55... Nexg4 56. Kxb4 f5 57. Nc3 $15) (55... Nfxg4 $142 {White must now prevent ...Bf2.} 56. Rc2 Nd3 57. Rc4+ Kg3) 56. Nd2 {[%emt 0:00:30]} Bxd2 {[%emt 0:00:45]} 57. Rxd2 {[%emt 0:00:02]} Kxg4 {[%emt 0:00:27]} 58. Bc4 {[%emt 0:00:58]} Nxc4 $1 {[%emt 0:00:39]} 59. Kxc4 {[%emt 0:00:01]} Ne5+ {[%emt 0:00:25]} (59... Nf4 $1 $15) 60. Kd5 $1 $11 {[%emt 0:00:01]} Kg5 {[%emt 0:00:39]} 61. Rb2 {[%emt 0:00:44]} Nd3 {[%emt 0:00:23]} 62. Rb3 {[%emt 0:00:29]} Nf4+ {[%emt 0:00:19]} 63. Kd4 {[%emt 0:00:13]} Kg4 {[%emt 0:00:43]} 64. Rxb4 {[%emt 0:00:09]} f5 {[%emt 0:00:19]} 65. Ke5 {[%emt 0:00:16]} (65. Ke3 $5 g5 $8 66. Kf2 $11) 65... g5 {[%emt 0:00:08]} 66. Kf6 {[%emt 0:00:05]} Kf3 {[%emt 0:01:00]} 67. Kxf5 {[%emt 0:00:02]} Nd5 {[%emt 0:00:17]} 68. Rb3+ {[%emt 0:00:21]} Ne3+ {[%emt 0:00:05]} 69. Kxg5 {[%emt 0:00:02]} Ke4 {[%emt 0:00:06]} 70. Rb4+ {[%emt 0:01:16]} Ke5 {[%emt 0:00:18]} 71. Rb8 {[%emt 0:00:07]} Nd5 {[%emt 0:00:18]} 72. Re8+ {[%emt 0:00:10]} Kd4 {[%emt 0:00:16]} 73. Kf5 {[%emt 0:00:07]} Ne3+ {[%emt 0:00:14]} 74. Ke6 {[%emt 0:00:01]} Ke4 {[%emt 0:00:21]} 75. Ra8 {[%emt 0:00:10]} Kd4 {[%emt 0:00:29]} 76. Ra1 {[%emt 0:00:46]} Nc4 {[%emt 0:00:28]} 77. Rd1+ {[%emt 0:00:09]} Ke4 {[%emt 0:00:11]} 78. Rh1 {[%emt 0:00:38]} Kd4 {[%emt 0:00:31]} 79. Rh4+ {[%emt 0:00:06]} Kc5 {[%emt 0:00:01]} 80. Rg4 {[%emt 0:00:24]} Ne3 {[%emt 0:01:20]} 81. Rg3 {[%emt 0:00:06]} Nc4 {[%emt 0:00:06]} 82. Rd3 {[%emt 0:00:05]} Nb6 {[%emt 0:00:21]} 83. Rd1 {[%emt 0:01:06]} Nc4 {[%emt 0:00:20]} 84. Rd5+ {[%emt 0:00:02]} Kb4 {[%emt 0:00:12]} 85. Rh5 {[%emt 0:00:28]} Kc3 {[%emt 0:00:21]} 86. Kd5 {[%emt 0:00:06]} Ne3+ {[%emt 0:01:05]} 87. Ke4 {[%emt 0:00:11]} Nc4 {[%emt 0:00:52]} 88. Rc5 {[%emt 0:00:02]} Kb4 {[%emt 0:00:29]} 89. Kd4 {[%emt 0:00:03]} Nd6 {[%emt 0:00:57]} 90. Kd5 {[%emt 0:01:10]} Nb5 {[%emt 0:00:37]} 91. Rc4+ {[%emt 0:00:01]} Kb3 {[%emt 0:00:12]} 92. Kc5 {[%emt 0:00:06]} Na3 {[%emt 0:01:36]} 93. Rh4 {[%emt 0:00:29]} Nc2 {[%emt 0:00:24]} 94. Rh3+ {[%emt 0:00:42]} Kb2 {[%emt 0:00:01]} 95. Kc4 {[%emt 0:02:39]} Na3+ {[%emt 0:00:18]} 96. Kd4 {[%emt 0:00:01]} Nb5+ {[%emt 0:00:52]} 97. Kc4 {[%emt 0:04:20]} Na3+ {[%emt 0:00:05]} 98. Kd3 {[%emt 0:00:02]} Kb3 {[%emt 0:00:25]} 99. Rh4 {[%emt 0:02:15]} Nb5 {[%emt 0:00:19]} 100. Rg4 {[%emt 0:00:23]} Na3 {[%emt 0:00:18]} 101. Kd4 {[%emt 0:00:22]} Nc2+ {[%emt 0:00:26]} 102. Kc5 {[%emt 0:00:02]} Kc3 {[%emt 0:00:20]} 103. Rg3+ {[%emt 0:00:04]} Kd2 {[%emt 0:00:44]} 104. Rh3 {[%emt 0:00:01]} Ne3 {[%emt 0:00:17]} 105. Kd4 {[%emt 0:00:01]} Nc2+ {[%emt 0:00:16]} 106. Ke4 {[%emt 0:00:01]} Ne1 {[%emt 0:02:16]} 107. Rh1 {[%emt 0:02:31]} Nc2 {[%emt 0:00:17]} 108. Rh8 {[%emt 0:00:42]} Kc3 {[%emt 0:01:15]} 109. Rc8+ {[%emt 0:00:02]} Kb3 {[%emt 0:00:11]} 110. Kd3 {[%emt 0:00:13]} Nb4+ {[%emt 0:00:02]} 111. Kd2 {[%emt 0:00:01]} Nd5 {[%emt 0:00:34]} 112. Rc5 {[%emt 0:00:03]} Nb4 {[%emt 0:00:07]} 113. Rc3+ {[%emt 0:00:03]} Ka4 {[%emt 0:00:10]} 114. Rc5 {[%emt 0:00:06]} Kb3 {[%emt 0:00:04]} 115. Rc1 {[%emt 0:01:24]} Nd5 {[%emt 0:00:27]} 116. Kd3 {[%emt 0:00:26]} Nb4+ {[%emt 0:00:09]} 117. Kd4 {[%emt 0:00:02]} Nc2+ {[%emt 0:00:09]} 118. Kc5 {[%emt 0:00:01]} Kc3 {[%emt 0:00:08]} 119. Rh1 {[%emt 0:00:02]} Kd3 {[%emt 0:00:08]} 120. Rh3+ {[%emt 0:00:03]} Ne3 {[%emt 0:00:21]} 1/2-1/2

[Event "1st Bangalore GM-Open-A 2024"]
[Site "Bangalore"]
[Date "2024.01.21"]
[Round "6.10"]
[White "Fawzy, Adham"]
[Black "Aradhya, Garg"]
[Result "0-1"]
[ECO "C89"]
[WhiteElo "2522"]
[BlackElo "2390"]
[Annotator "TA"]
[PlyCount "68"]
[EventDate "2024.01.20"]
[EventType "swiss"]
[EventCountry "IND"]
[SourceTitle "playchess.com"]
[Source "ChessBase"]
[SourceQuality "1"]
[TimeControl "5400+30"]

{[%evp 29,68,27,33,45,95,0,0,0,0,-133,-124,-124,-127,-163,-119,-239,-225,-528,-517,-921,-918,-1322,-1256,-1321,-1322,-1300,-1310,-1294,-1291,-1267,-1263,-1169,-1150,-1218,-1078,-1026,-1018,-1017,-990,-1494,-1475]} 1. e4 {[%emt 0:05:15]} e5 {[%emt 0:00:01]} 2. Nf3 {[%emt 0:00:20]} Nc6 {[%emt 0:00:05]} 3. Bb5 {[%emt 0:00:18]} a6 {[%emt 0:00:07]} 4. Ba4 {[%emt 0:00:04]} Nf6 {[%emt 0:01:36]} 5. O-O {[%emt 0:02:56]} Be7 {[%emt 0:07:16]} 6. Re1 {[%emt 0:01:32]} b5 {[%emt 0:00:04]} 7. Bb3 {[%emt 0:00:06]} O-O {[%emt 0:00:28]} 8. c3 {[%emt 0:02:28]} d5 {[%emt 0:00:30]} 9. exd5 {[%emt 0:00:53]} Nxd5 {[%emt 0:00:05]} 10. Nxe5 {[%emt 0:00:14]} Nxe5 {[%emt 0:00:11]} 11. Rxe5 {[%emt 0:00:11]} c6 {[%emt 0:00:09]} 12. d4 {[%emt 0:00:15]} Bd6 {[%emt 0:00:44]} 13. Re1 {[%emt 0:00:48]} Qh4 {[%emt 0:00:48]} 14. g3 {[%emt 0:00:06]} Qh3 {[%emt 0:00:03]} 15. Re4 {[%emt 0:00:48]} g5 $1 {[%emt 0:00:40]} 16. Qf1 {[%emt 0:00:00]} ({And not} 16. Bxg5 Qf5 17. Nd2 (17. Bxd5 $2 cxd5 18. Re3 Qxg5 $19) 17... Qxg5 $17) 16... Qh6 {[%emt 0:02:21]} (16... Qxf1+ $14 17. Kxf1 h6) 17. Nd2 {[%emt 0:05:23]} (17. Re1 $1 $16) 17... f5 $1 $11 {[%emt 0:10:09]} 18. Re1 {[%emt 0:01:04] The position is equal.} f4 $40 {[%emt 0:00:33][%mdl 128] aiming for ...fxg3. Black has some attack.} 19. Ne4 {[%emt 0:06:25]} (19. Qe2 $11) 19... Bh3 $1 $17 {[%emt 0:02:55][%mdl 1024] Black has strong compensation. White is now going downhill.} 20. Qd3 {[%emt 0:06:13] [#]} Rae8 $1 {[%emt 0:03:49]} 21. Bd2 {[%emt 0:12:33] [#] And now Nxd6 would win.} Bf5 $1 {[%emt 0:06:29] Hoping for ...Kg7.} 22. Bc2 {[%emt 0:09:26]} (22. Qf3 $17 Bxe4 {[%mdl 64] Remove Defender} 23. Rxe4 fxg3 {[%mdl 64] Discovered Attack} 24. Rxe8 Qxh2+ 25. Kf1 Rxe8 26. Bxd5+ cxd5 27. Qxd5+ Kh8 28. Qg2) 22... Kh8 {[%emt 0:08:58] ...Nf6 is the strong threat.} 23. c4 $2 {[%emt 0:12:32]} (23. Qf1 {is a better chance.} fxg3 24. hxg3 Bxe4 {[%mdl 64] Remove Defender} 25. Rxe4 Bxg3 26. fxg3 Rxf1+ 27. Rxf1 Rxe4 28. Bxe4) 23... Nf6 $19 {[%emt 0:06:57] Black is clearly winning.} 24. f3 {[%emt 0:01:26]} (24. Qf3 $142 Bxe4 25. Bxe4 fxg3 26. fxg3 Nxe4 {[%mdl 64] Discovered Attack} 27. Qg2) 24... fxg3 {[%emt 0:00:32]} 25. Re2 {[%emt 0:05:45]} Nxe4 {[%emt 0:01:38]} 26. fxe4 {[%emt 0:00:53] [#]} Bxe4 $1 {[%emt 0:00:39][%mdl 512]} 27. Qxe4 {[%emt 0:00:01]} Rxe4 {[%emt 0:00:30]} (27... bxc4 $2 28. Qxe8 $18) 28. Bxe4 {[%emt 0:00:02]} Rf2 {[%emt 0:04:14][%mdl 64] Decoy} 29. Rxf2 {[%emt 0:00:13]} gxf2+ {[%emt 0:00:07]} 30. Kxf2 {[%emt 0:00:25]} Qh4+ {[%emt 0:00:40]} 31. Kf3 {[%emt 0:00:30]} g4+ {[%emt 0:02:54]} 32. Ke2 {[%emt 0:00:10]} Qxh2+ {[%emt 0:00:10]} 33. Kd3 {[%emt 0:00:03]} bxc4+ {[%emt 0:00:27]} 34. Kc3 {[%emt 0:00:03]} Qe2 {[%emt 0:00:33] Beautiful play by Aradhya!   Weighted Error Value: White=1.40/Black=0.12 (very precise)} 0-1